fUSD/lending_fUSD_20260321
["ID","MTS","AMOUNT","RATE_DAILY","PERIOD"]
[408693428,1774132238927,-151.0,0.00013316,2]
[408693429,1774132238938,-151.0,0.00013316,2]
[408693430,1774132238948,-151.0,0.00013316,2]
[408693431,1774132238957,-151.0,0.00013316,2]
[408693432,1774132238968,-151.0,0.00013316,2]
[408693433,1774132238978,-151.0,0.00013316,2]
[408693434,1774132238987,-151.0,0.00013316,2]
[408693435,1774132238996,-151.0,0.00013316,2]
[408693436,1774132239006,-151.0,0.00013316,2]
[408693437,1774132239015,-151.0,0.00013316,2]
[408693438,1774132239024,-151.0,0.00013316,2]
[408693439,1774132239033,-151.0,0.00013316,2]
[408693440,1774132239043,-151.0,0.00013316,2]
[408693441,1774132239052,-151.0,0.00013316,2]
[408693442,1774132239061,-151.0,0.00013316,2]
[408693443,1774132239070,-151.0,0.00013316,2]
[408693444,1774132239079,-151.0,0.00013316,2]
[408693445,1774132239088,-151.0,0.00013316,2]
[408693446,1774132239097,-151.0,0.00013316,2]
[408693447,1774132239106,-151.0,0.00013316,2]
[408693448,1774132239115,-151.0,0.00013316,2]
[408693449,1774132239125,-151.0,0.00013316,2]
[408693450,1774132239134,-612978.00672385,0.00013324,2]
[408693451,1774132239150,-43357.09205457,0.00013324,2]
[408693452,1774132239161,-74596.30322681,0.00013324,2]
[408693453,1774132239180,-1159.41324796,0.00013324,2]
[408693454,1774132240111,-513944.95424681,0.00013324,2]
[408693455,1774132240123,-500.0,0.00013373,2]
[408693456,1774132240135,-500.0,0.00013373,2]
[408693457,1774132240144,-378.53301702,0.00013373,2]
[408693458,1774132240153,-500.0,0.00013373,2]
[408693459,1774132240163,-500.0,0.00013373,2]
[408693460,1774132240172,-500.0,0.00013373,2]
[408693461,1774132240182,-500.0,0.00013373,2]
[408693462,1774132240191,-500.0,0.00013373,2]
[408693463,1774132240201,-617.71984531,0.00013373,2]
[408693464,1774132240210,-500.0,0.00013373,2]
[408693465,1774132240220,-500.0,0.00013373,2]
[408693466,1774132240230,-500.0,0.00013373,2]
[408693467,1774132240239,-544.56814041,0.00013436,2]
[408693468,1774132240249,-1340.0617922,0.00013436,2]
[408693469,1774132240259,-1291.07238352,0.00013436,2]
[408693470,1774132240268,-1163.23819067,0.00013436,2]
[408693471,1774132240278,-355.23665199,0.00013436,2]
[408693472,1774132240287,-683.52394169,0.00013436,2]
[408693473,1774132240296,-770.80519237,0.00013436,2]
[408693474,1774132240306,-750.2668973,0.00013436,2]
[408693475,1774132240315,-152.96986947,0.00013497,2]
[408693476,1774132240324,-6741.69937359,0.0001352,2]
[408693477,1774132240333,-1611.02337535,0.00013521,2]
[408693478,1774132240343,-1796.0,0.00013552,2]
[408693479,1774132240353,-890.93,0.0001359,2]
[408693480,1774132240362,-809.24686228,0.00013606,2]
[408693481,1774132240371,-497.0,0.00013617,2]
[408693482,1774132240380,-184.4667415,0.00013644,2]
[408693483,1774132240390,-1024.0,0.00013657,2]
[408693484,1774132240399,-63231.64799732,0.00013678,2]
[408693485,1774132240409,-531.0,0.00013685,2]
[408693486,1774132240418,-500.0,0.00013698,2]
[408693487,1774132240427,-500.0,0.00013698,2]
[408693488,1774132240436,-500.0,0.00013698,2]
[408693489,1774132240446,-500.0,0.00013698,2]
[408693490,1774132240455,-500.0,0.00013698,2]
[408693491,1774132240465,-500.0,0.00013698,2]
[408693492,1774132240475,-569.64418973,0.00013698,2]
[408693493,1774132240484,-500.0,0.00013698,2]
[408693494,1774132240494,-500.0,0.00013698,2]
[408693495,1774132240504,-500.0,0.00013698,2]
[408693496,1774132240514,-500.0,0.00013698,2]
[408693497,1774132240524,-500.0,0.00013698,2]
[408693498,1774132240534,-500.0,0.00013698,2]
[408693499,1774132240543,-500.0,0.00013698,2]
[408693500,1774132240553,-500.0,0.00013698,2]
[408693501,1774132240562,-500.0,0.00013698,2]
[408693503,1774132240572,-500.0,0.00013698,2]
[408693505,1774132240582,-441.16865267,0.00013698,2]
[408693506,1774132240591,-500.0,0.00013698,2]
[408693508,1774132240601,-500.0,0.00013698,2]
[408693509,1774132240611,-500.0,0.00013698,2]
[408693510,1774132240620,-500.0,0.00013698,2]
[408693512,1774132240630,-500.0,0.00013698,2]
[408693513,1774132240639,-282.40708321,0.00013698,2]
[408693514,1774132240649,-200.0,0.00013699,2]
[408693515,1774132240660,-1420.73,0.00013699,2]
[408693516,1774132240671,-354.1,0.00013699,2]
[408693517,1774132240680,-176.25227146,0.00013699,2]
[408693518,1774132240690,-733.25,0.000137,2]
[408693519,1774132240700,-226.33,0.000137,2]
[408693520,1774132240709,-1134.55,0.000137,2]
[408693521,1774132240719,-1154.54,0.000137,2]
[408693522,1774132240728,-10000.0,0.00013793,2]
[408693523,1774132240740,-504.87,0.00013814,2]
[408693525,1774132240750,-6741.69937359,0.00013818,2]
[408693527,1774132240759,-1611.02337535,0.00013819,2]
[408693529,1774132240769,-10000.01,0.00013847,2]
[408693531,1774132240778,-890.93,0.00013864,2]
[408693533,1774132240787,-200.0,0.00013864,2]
[408693535,1774132240797,-1521.0,0.00013883,2]
[408693537,1774132240806,-1521.0,0.00013883,2]
[408693538,1774132240815,-1521.0,0.00013883,2]
[408693539,1774132240824,-1521.0,0.00013883,2]
[408693540,1774132240834,-1521.0,0.00013883,2]
[408693541,1774132240848,-1521.0,0.00013883,2]
[408693542,1774132240857,-1521.0,0.00013883,2]
[408693543,1774132240867,-1521.0,0.00013883,2]
[408693544,1774132240879,-1521.0,0.00013883,2]
[408693545,1774132240890,-1521.0,0.00013883,2]
[408693546,1774132240900,-1521.0,0.00013883,2]
[408693547,1774132240911,-1521.0,0.00013883,2]
[408693548,1774132240921,-1521.0,0.00013883,2]
[408693549,1774132240931,-1521.0,0.00013883,2]
[408693550,1774132240942,-1521.0,0.00013883,2]
[408693551,1774132240951,-1521.0,0.00013883,2]
[408693552,1774132240960,-1521.0,0.00013883,2]
[408693553,1774132240970,-1521.0,0.00013883,2]
[408693554,1774132240980,-1521.0,0.00013883,2]
[408693555,1774132240989,-1521.0,0.00013883,2]
[408693556,1774132240998,-1521.0,0.00013883,2]
[408693557,1774132241007,-172.47366333,0.00013883,2]
[408693558,1774132241016,-151.0,0.00013883,2]
[408693559,1774132241026,-152.91910529,0.00013883,2]
[408693560,1774132241035,-1000.0,0.00013921,2]
[408693561,1774132241045,-1000.0,0.00013921,2]
[408693562,1774132241054,-367.89307626,0.00013921,2]
[408693563,1774132241064,-500.48431933,0.00013921,2]
[408693564,1774132241073,-809.24686228,0.00013989,2]
[408693565,1774132241084,-506.0,0.00014,2]
[408693566,1774132241093,-2000.0,0.00014035,2]
[408693567,1774132241103,-6741.69937359,0.00014115,2]
[408693568,1774132241112,-1611.02337535,0.00014116,2]
[408693569,1774132241122,-890.93,0.00014138,2]
[408693570,1774132241131,-171.64,0.00014176,2]
[408693571,1774132241141,-5000.0,0.00014229,2]
[408693572,1774132241151,-195.0,0.00014229,2]
[408693573,1774132241160,-195.0,0.00014229,2]
[408693574,1774132241171,-195.0,0.00014229,2]
[408693575,1774132241180,-195.0,0.00014229,2]
[408693576,1774132241191,-300.0,0.00014229,2]
[408693577,1774132241201,-538.89,0.00014271,2]
[408693578,1774132241211,-255.0,0.00014333,2]
[408693579,1774132241397,-809.24686228,0.00014371,2]
[408693580,1774132241407,-166.42,0.0001438,2]
[408693581,1774132241416,-1420.73,0.00014384,2]
[408693582,1774132241425,-332.75456688,0.00014387,2]
[408693583,1774132241434,-890.93,0.00014412,2]
[408693584,1774132241443,-200.0,0.00014412,2]
[408693585,1774132241453,-6741.69937359,0.00014413,2]
[408693586,1774132241462,-1611.02337535,0.00014413,2]
[408693587,1774132241472,-300.0,0.00014441,2]
[408693588,1774132241481,-250.0,0.00014448,2]
[408693589,1774132241491,-502.62691089,0.00014468,2]
[408693590,1774132241501,-500.0,0.00014468,2]
[408693591,1774132241510,-1680.0,0.00014487,2]
[408693592,1774132241520,-259.97,0.00014517,2]
[408693593,1774132241529,-159.84756314,0.00014528,2]
[408693594,1774132241539,-16349.37,0.00014608,2]
[408693595,1774132241551,-1065.99,0.00014655,2]
[408693596,1774132241561,-589.14291018,0.00014655,2]
[408693597,1774132241570,-890.93,0.00014686,2]
[408693598,1774132241581,-6741.69937359,0.0001471,2]
[408693599,1774132241590,-1611.02337535,0.00014711,2]
[408693600,1774132241600,-161.0,0.0001472,2]
[408693601,1774132241609,-809.24686228,0.00014753,2]
[408693602,1774132241618,-442.32,0.00014951,2]
[408693603,1774132241628,-890.93,0.0001496,2]
[408693604,1774132241637,-200.0,0.0001496,2]
[408693605,1774132241647,-160.0,0.00014965,2]
[408693606,1774132241658,-979.16666667,0.00014965,2]
[408693607,1774132241668,-160.0,0.00014965,2]
[408693608,1774132241677,-7807.84,0.00014982,2]
[408693609,1774132241686,-250.0,0.00015,2]
[408693610,1774132241696,-2063.43341919,0.00015,2]
[408693611,1774132241706,-8033.01427749,0.00015,2]
[408693612,1774132241717,-977.55027176,0.00015,7]
[408693613,1774132241728,-6741.69937359,0.00015008,2]
[408693614,1774132241738,-1611.02337535,0.00015008,2]
[408693615,1774132241747,-1568.0,0.0001504,2]
[408693616,1774132241756,-1420.73,0.00015068,2]
[408693617,1774132241766,-500.0,0.00015087,2]
[408693618,1774132241776,-500.0,0.00015087,2]
[408693619,1774132241785,-500.0,0.00015087,2]
[408693620,1774132241796,-500.0,0.00015087,2]
[408693621,1774132241807,-500.0,0.00015087,2]
[408693622,1774132241817,-250.0,0.00015087,2]
[408693623,1774132241826,-500.0,0.00015087,2]
[408693624,1774132241836,-250.0,0.00015087,2]
[408693625,1774132241847,-500.0,0.00015087,2]
[408693626,1774132241856,-250.0,0.00015087,2]
[408693627,1774132241865,-250.0,0.00015087,2]
[408693628,1774132241874,-500.0,0.00015087,2]
[408693629,1774132241884,-250.0,0.00015087,2]
[408693630,1774132241893,-250.0,0.00015087,2]
[408693631,1774132241902,-500.0,0.00015087,2]
[408693632,1774132241912,-500.0,0.00015087,2]
[408693633,1774132241921,-500.0,0.00015087,2]
[408693634,1774132241931,-500.0,0.00015087,2]
[408693635,1774132241941,-250.0,0.00015087,2]
[408693636,1774132241950,-268.3661478,0.00015087,2]
[408693637,1774132241960,-250.0,0.00015087,2]
[408693638,1774132241970,-250.0,0.00015087,2]
[408693639,1774132241979,-250.0,0.00015087,2]
[408693640,1774132241991,-250.0,0.00015087,2]
[408693641,1774132242000,-384.68684515,0.00015087,2]
[408693642,1774132242010,-1600.0,0.00015093,2]
[408693643,1774132242019,-442.3533437,0.00015097,2]
[408693644,1774132242029,-558.0,0.00015123,2]
[408693645,1774132242039,-809.24686228,0.00015135,2]
[408693646,1774132242048,-500.0,0.00015151,2]
[408693647,1774132242057,-558.0,0.00015175,2]
[408693648,1774132242067,-164.057479,0.00015213,7]
[408693649,1774132242076,-840.0,0.00015227,2]
[408693650,1774132242086,-890.93,0.00015234,2]
[408693651,1774132242095,-558.0,0.0001524,2]
[408693652,1774132242106,-840.0,0.00015256,2]
[408693653,1774132242115,-362.09636652,0.00015261,2]
[408693654,1774132242125,-558.0,0.00015278,2]
[408693655,1774132242135,-361.40913,0.00015288,7]
[408693656,1774132242145,-160.0,0.00015288,7]
[408693657,1774132242155,-177.020755,0.00015291,7]
[408693658,1774132242164,-197.928693,0.00015291,7]
[408693659,1774132242174,-389.900427,0.00015291,7]
[408693660,1774132242183,-6741.69937359,0.00015305,2]
[408693661,1774132242193,-1611.02337535,0.00015305,2]
[408693662,1774132242204,-259.97,0.00015324,2]
[408693663,1774132242214,-161.0,0.0001536,2]
[408693664,1774132242223,-161.0,0.0001536,2]
[408693665,1774132242233,-1568.0,0.0001536,2]
[408693666,1774132242242,-558.0,0.00015374,2]
[408693667,1774132242252,-350.0,0.00015387,2]
[408693668,1774132242261,-160.0,0.00015408,7]
[408693669,1774132242271,-350.0,0.00015421,2]
[408693670,1774132242281,-2300.0,0.000155,5]
[408693671,1774132242290,-558.0,0.000155,2]
[408693672,1774132242300,-890.93,0.00015508,2]
[408693673,1774132242313,-702.0,0.00015511,2]
[408693674,1774132242322,-809.24686228,0.00015518,2]
[408693675,1774132242331,-222.669781,0.00015523,7]
[408693676,1774132242341,-160.0,0.00015523,7]
[408693677,1774132242351,-433.0,0.00015536,2]
[408693678,1774132242360,-558.0,0.00015551,2]
[408693679,1774132242370,-2000.0,0.00015595,2]
[408693680,1774132242380,-2900.0,0.000156,5]
[408693681,1774132242390,-6741.69937359,0.00015603,2]
[408693682,1774132242401,-1611.02337535,0.00015603,2]
[408693683,1774132242411,-350.0,0.00015604,2]
[408693684,1774132242420,-161.0,0.0001564,2]
[408693685,1774132242431,-558.0,0.00015658,2]
[408693686,1774132242440,-2403.0,0.0001568,2]
[408693687,1774132242450,-1568.0,0.0001568,2]
[408693688,1774132242460,-1568.0,0.0001568,2]
[408693689,1774132242470,-1568.0,0.0001568,2]
[408693690,1774132242480,-500.0,0.000157,5]
[408693691,1774132242491,-500.0,0.00015722,2]
[408693692,1774132242501,-500.0,0.00015722,2]
[408693693,1774132242510,-500.0,0.00015722,2]
[408693694,1774132242520,-500.0,0.00015722,2]
[408693695,1774132242530,-500.0,0.00015722,2]
[408693696,1774132242539,-500.0,0.00015722,2]
[408693697,1774132242549,-500.0,0.00015722,2]
[408693698,1774132242559,-500.0,0.00015722,2]
[408693699,1774132242568,-500.0,0.00015722,2]
[408693700,1774132242578,-500.0,0.00015722,2]
[408693701,1774132242587,-577.95065984,0.00015722,2]
[408693702,1774132242598,-500.0,0.00015722,2]
[408693703,1774132242608,-500.0,0.00015722,2]
[408693704,1774132242618,-500.0,0.00015722,2]
[408693705,1774132242627,-500.0,0.00015722,2]
[408693706,1774132242637,-500.0,0.00015722,2]
[408693707,1774132242646,-500.0,0.00015722,2]
[408693708,1774132242657,-500.0,0.00015722,2]
[408693709,1774132242671,-500.0,0.00015722,2]
[408693710,1774132242680,-500.0,0.00015722,2]
[408693711,1774132242690,-500.0,0.00015722,2]
[408693712,1774132242700,-500.0,0.00015722,2]
[408693713,1774132242711,-500.0,0.00015722,2]
[408693714,1774132242721,-500.0,0.00015722,2]
[408693715,1774132242731,-500.0,0.00015722,2]
[408693716,1774132242742,-500.0,0.00015722,2]
[408693717,1774132242751,-500.0,0.00015722,2]
[408693718,1774132242760,-500.0,0.00015722,2]
[408693719,1774132242770,-500.0,0.00015722,2]
[408693720,1774132242780,-500.0,0.00015722,2]
[408693721,1774132242790,-693.0,0.00015722,2]
[408693722,1774132242800,-500.0,0.00015722,2]
[408693723,1774132242809,-500.0,0.00015722,2]
[408693724,1774132242819,-500.0,0.00015722,2]
[408693725,1774132242830,-500.0,0.00015722,2]
[408693726,1774132242840,-693.0,0.00015722,2]
[408693727,1774132242850,-322.02411673,0.00015722,2]
[408693728,1774132242860,-693.0,0.00015722,2]
[408693729,1774132242870,-215.33010556,0.00015722,2]
[408693730,1774132242880,-500.0,0.00015722,2]
[408693731,1774132242890,-693.0,0.00015722,2]
[408693732,1774132242900,-500.0,0.00015722,2]
[408693733,1774132242910,-693.0,0.00015722,2]
[408693734,1774132242919,-500.0,0.00015722,2]
[408693735,1774132242929,-693.0,0.00015722,2]
[408693736,1774132242938,-500.0,0.00015722,2]
[408693737,1774132242947,-693.0,0.00015722,2]
[408693738,1774132242956,-246.79709611,0.00015722,2]
[408693740,1774132242966,-500.0,0.00015722,2]
[408693742,1774132242975,-500.0,0.00015722,2]
[408693743,1774132242985,-693.0,0.00015722,2]
[408693745,1774132242994,-500.0,0.00015722,2]
[408693746,1774132243004,-500.0,0.00015722,2]
[408693747,1774132243013,-693.0,0.00015722,2]
[408693748,1774132243022,-500.0,0.00015722,2]
[408693749,1774132243031,-500.0,0.00015722,2]
[408693750,1774132243041,-693.0,0.00015722,2]
[408693751,1774132243050,-256.16426944,0.00015722,2]
[408693752,1774132243059,-500.0,0.00015722,2]
[408693753,1774132243069,-693.0,0.00015722,2]
[408693754,1774132243080,-500.0,0.00015722,2]
[408693755,1774132243090,-693.0,0.00015722,2]
[408693756,1774132243100,-500.0,0.00015722,2]
[408693757,1774132243109,-693.0,0.00015722,2]
[408693758,1774132243118,-500.0,0.00015722,2]
[408693759,1774132243127,-693.0,0.00015722,2]
[408693760,1774132243137,-500.0,0.00015722,2]
[408693761,1774132243146,-693.0,0.00015722,2]
[408693762,1774132243155,-500.0,0.00015722,2]
[408693763,1774132243164,-372.33776627,0.00015722,2]
[408693764,1774132243173,-693.0,0.00015722,2]
[408693765,1774132243182,-693.0,0.00015722,2]
[408693766,1774132243191,-500.0,0.00015722,2]
[408693767,1774132243201,-500.0,0.00015722,2]
[408693768,1774132243210,-500.0,0.00015722,2]
[408693769,1774132243219,-500.0,0.00015722,2]
[408693770,1774132243229,-500.0,0.00015722,2]
[408693771,1774132243238,-261.70880193,0.00015722,2]
[408693772,1774132243250,-500.0,0.00015722,2]
[408693773,1774132243260,-500.0,0.00015722,2]
[408693774,1774132243269,-693.0,0.00015722,2]
[408693775,1774132243279,-500.0,0.00015722,2]
[408693776,1774132243288,-500.0,0.00015722,2]
[408693777,1774132243298,-500.0,0.00015722,2]
[408693778,1774132243307,-500.0,0.00015722,2]
[408693779,1774132243316,-500.0,0.00015722,2]
[408693781,1774132243326,-500.0,0.00015722,2]
[408693783,1774132243335,-500.0,0.00015722,2]
[408693784,1774132243344,-693.0,0.00015722,2]
[408693786,1774132243354,-500.0,0.00015722,2]
[408693788,1774132243363,-500.0,0.00015722,2]
[408693790,1774132243373,-500.0,0.00015722,2]
[408693791,1774132243382,-500.0,0.00015722,2]
[408693792,1774132243392,-500.0,0.00015722,2]
[408693793,1774132243401,-693.0,0.00015722,2]
[408693794,1774132243411,-500.0,0.00015722,2]
[408693795,1774132243420,-500.0,0.00015722,2]
[408693796,1774132243430,-500.0,0.00015722,2]
[408693797,1774132243439,-500.0,0.00015722,2]
[408693798,1774132243448,-500.0,0.00015722,2]
[408693799,1774132243457,-500.0,0.00015722,2]
[408693800,1774132243467,-500.0,0.00015722,2]
[408693801,1774132243477,-500.0,0.00015722,2]
[408693802,1774132243486,-500.0,0.00015722,2]
[408693803,1774132243495,-409.47795526,0.00015722,2]
[408693804,1774132243504,-500.0,0.00015722,2]
[408693805,1774132243513,-693.0,0.00015722,2]
[408693806,1774132243523,-500.0,0.00015722,2]
[408693808,1774132243532,-500.0,0.00015722,2]
[408693809,1774132243541,-500.0,0.00015722,2]
[408693810,1774132243550,-500.0,0.00015722,2]
[408693811,1774132243559,-500.0,0.00015722,2]
[408693812,1774132243568,-500.0,0.00015722,2]
[408693813,1774132243577,-693.0,0.00015722,2]
[408693814,1774132243587,-500.0,0.00015722,2]
[408693815,1774132243596,-500.0,0.00015722,2]
[408693816,1774132243605,-693.0,0.00015722,2]
[408693817,1774132243614,-266.24818512,0.00015722,2]
[408693818,1774132243624,-715.0,0.00015722,2]
[408693819,1774132243633,-1420.73,0.00015753,2]
[408693820,1774132243642,-890.93,0.00015782,2]
[408693821,1774132243651,-159.84756314,0.00015784,2]
[408693822,1774132243664,-702.0,0.00015791,2]
[408693823,1774132243674,-500.0,0.000158,5]
[408693824,1774132243683,-2997.0,0.000158,2]
[408693825,1774132243692,-702.0,0.00015811,2]
[408693826,1774132243702,-338.47316987,0.00015839,2]
[408693827,1774132243713,-48121.4017378,0.0001584,2]
[408693828,1774132243723,-442.32,0.00015857,2]
[408693829,1774132243733,-500.0,0.00015872,2]
[408693830,1774132243743,-700.05144007,0.00015897,2]
[408693831,1774132243752,-219.6456524,0.00015897,2]
[408693832,1774132243761,-13972.20897816,0.00015897,2]
[408693833,1774132243770,-700.05144006,0.00015899,2]
[408693834,1774132243780,-219.64565239,0.00015899,2]
[408693835,1774132243790,-13972.20897816,0.00015899,2]
[408693836,1774132243800,-10000.0,0.000159,2]
[408693837,1774132243810,-500.0,0.000159,5]
[408693838,1774132243821,-2022.0,0.000159,2]
[408693839,1774132243831,-700.05144006,0.000159,2]
[408693840,1774132243842,-219.64565239,0.000159,2]
[408693841,1774132243851,-13972.20897816,0.000159,2]
[408693842,1774132243860,-1611.02337535,0.000159,2]
[408693843,1774132243870,-809.24686228,0.000159,2]
[408693844,1774132243879,-6741.69937359,0.000159,2]
[408693845,1774132243888,-1820.0,0.000159,5]
[408693846,1774132243898,-325.0,0.00015914,2]
[408693847,1774132243908,-2351.0,0.00015936,2]
[408693848,1774132243918,-442.32,0.00015965,2]
[408693849,1774132243927,-500.0,0.00015973,2]
[408693850,1774132243936,-500.0,0.00015973,2]
[408693851,1774132243945,-500.0,0.00015973,2]
[408693852,1774132243955,-500.0,0.00015973,2]
[408693853,1774132243964,-226.57620935,0.00015973,2]
[408693854,1774132243973,-500.0,0.00015973,2]
[408693855,1774132243983,-500.0,0.00015973,2]
[408693856,1774132243992,-500.0,0.00015973,2]
[408693857,1774132244002,-500.0,0.00015973,2]
[408693858,1774132244011,-501.28770509,0.00015973,2]
[408693859,1774132244021,-500.0,0.00015973,2]
[408693860,1774132244030,-500.0,0.00015973,2]
[408693861,1774132244039,-500.0,0.00015973,2]
[408693862,1774132244049,-500.0,0.00015973,2]
[408693863,1774132244058,-500.0,0.00015973,2]
[408693864,1774132244067,-500.0,0.00015973,2]
[408693865,1774132244076,-500.0,0.00015973,2]
[408693866,1774132244085,-500.0,0.00015973,2]
[408693867,1774132244095,-500.0,0.00015973,2]
[408693868,1774132244104,-399.90719368,0.00015973,2]
[408693869,1774132244113,-500.0,0.00015973,2]
[408693870,1774132244124,-500.0,0.00015973,2]
[408693871,1774132244133,-500.0,0.00015973,2]
[408693872,1774132244142,-500.0,0.00015973,2]
[408693873,1774132244151,-500.0,0.00015973,2]
[408693874,1774132244160,-500.0,0.00015973,2]
[408693875,1774132244169,-500.0,0.00015973,2]
[408693876,1774132244178,-500.0,0.00015973,2]
[408693877,1774132244187,-500.0,0.00015973,2]
[408693878,1774132244196,-500.0,0.00015973,2]
[408693879,1774132244205,-500.0,0.00015973,2]
[408693880,1774132244214,-500.0,0.00015973,2]
[408693881,1774132244224,-500.0,0.00015973,2]
[408693882,1774132244233,-500.0,0.00015973,2]
[408693883,1774132244243,-500.0,0.00015973,2]
[408693884,1774132244253,-500.0,0.00015973,2]
[408693885,1774132244262,-500.0,0.00015973,2]
[408693886,1774132244271,-500.0,0.00015973,2]
[408693887,1774132244280,-389.88183382,0.00015973,2]
[408693888,1774132244289,-500.0,0.00015973,2]
[408693889,1774132244298,-500.0,0.00015973,2]
[408693890,1774132244307,-500.0,0.00015973,2]
[408693891,1774132244320,-702.0,0.00015982,2]
[408693892,1774132244330,-1568.0,0.00015995,2]
[408693893,1774132244339,-6217.2500377,0.00015997,2]
[408693894,1774132244351,-151.0,0.00015997,2]
[408693895,1774132244360,-60345.860932,0.00015997,2]
[408693896,1774132244370,-9682.9463717,0.00015997,2]
[408693897,1774132244380,-353377.4638195,0.00015997,2]
[408693898,1774132244389,-138965.9990173,0.00015997,2]
[408693899,1774132244398,-567788.9286217,0.00015997,2]
[408693900,1774132244408,-120691.7218637,0.00015997,2]
[408693901,1774132244418,-151.0,0.00015997,2]
[408693902,1774132244428,-151.0,0.00015997,2]
[408693903,1774132244437,-821.609836,0.00015997,2]
[408693904,1774132244448,-821.609836,0.00015997,2]
[408693905,1774132244457,-821.609836,0.00015997,2]
[408693906,1774132244467,-821.609836,0.00015997,2]
[408693907,1774132244476,-151.0,0.00015997,2]
[408693908,1774132244488,-204.966934,0.00015997,2]
[408693909,1774132244500,-151.0,0.00015997,2]
[408693910,1774132244509,-151.0,0.00015997,2]
[408693911,1774132244519,-392.943174,0.00015997,2]
[408693912,1774132244529,-392.943174,0.00015997,2]
[408693913,1774132244539,-392.943174,0.00015997,2]
[408693914,1774132244548,-392.943174,0.00015997,2]
[408693915,1774132244557,-392.943174,0.00015997,2]
[408693916,1774132244567,-392.943174,0.00015997,2]
[408693917,1774132244576,-392.943174,0.00015997,2]
[408693918,1774132244585,-392.943174,0.00015997,2]
[408693919,1774132244595,-151.0,0.00015997,2]
[408693920,1774132244604,-151.0,0.00015997,2]
[408693921,1774132244613,-151.0,0.00015997,2]
[408693922,1774132244623,-151.0,0.00015997,2]
[408693923,1774132244632,-151.0,0.00015997,2]
[408693924,1774132244641,-151.0,0.00015997,2]
[408693925,1774132244650,-151.0,0.00015997,2]
[408693926,1774132244663,-151.0,0.00015997,2]
[408693927,1774132244672,-151.0,0.00015997,2]
[408693928,1774132244681,-151.0,0.00015997,2]
[408693929,1774132244691,-281.51699,0.00015997,2]
[408693930,1774132244701,-281.51699,0.00015997,2]
[408693931,1774132244711,-281.51699,0.00015997,2]
[408693932,1774132244720,-281.51699,0.00015997,2]
[408693933,1774132244731,-1264.078394,0.00015997,2]
[408693934,1774132244741,-1264.078394,0.00015997,2]
[408693935,1774132244752,-281.51699,0.00015997,2]
[408693936,1774132244761,-281.51699,0.00015997,2]
[408693937,1774132244772,-1264.078394,0.00015997,2]
[408693938,1774132244783,-1264.078394,0.00015997,2]
[408693939,1774132244921,-281.51699,0.00015997,2]
[408693940,1774132244933,-281.51699,0.00015997,2]
[408693941,1774132244943,-1264.078394,0.00015997,2]
[408693942,1774132244952,-1264.078394,0.00015997,2]
[408693943,1774132244961,-1264.078394,0.00015997,2]
[408693944,1774132244971,-1264.078394,0.00015997,2]
[408693945,1774132244979,-151.0,0.00015997,2]
[408693946,1774132244988,-151.0,0.00015997,2]
[408693947,1774132244998,-151.0,0.00015997,2]